lending/lending_fUSD_20250819
["ID","MTS","AMOUNT","RATE_DAILY","PERIOD"]
[380166437,1755589775251,668.2,0.00030136,120]
[380166438,1755589775875,400.0,0.00030136,120]
[380166439,1755589776093,3305.66,0.00030136,120]
[380166440,1755589776292,400.0,0.00030136,120]
[380166441,1755589776405,924.56,0.00030136,120]
[380166442,1755589776651,400.0,0.00030136,120]
[380166443,1755589776819,567.22,0.00030136,120]
[380166444,1755589777232,400.0,0.00030136,120]
[380166445,1755589777335,400.0,0.00030136,120]
[380166446,1755589777928,400.0,0.00030136,120]
[380166447,1755589778018,400.0,0.00030136,120]
[380166448,1755589778413,892.2,0.00030136,120]
[380166449,1755589779522,6200.9,0.00030136,120]
[380166450,1755589779830,400.0,0.00030136,120]
[380166451,1755589780030,959.92,0.00030136,120]
[380166452,1755589781959,945.28,0.00030136,120]
[380166453,1755589782722,2386.55,0.00030136,120]
[380166454,1755589782884,400.0,0.00030136,120]
[380166455,1755589783455,1039.86,0.00030136,120]
[380166456,1755589783566,2776.6,0.00030136,120]
[380166457,1755589783734,400.0,0.00030136,120]
[380166458,1755589785297,400.0,0.00030136,120]
[380166459,1755589785394,400.0,0.00030136,120]
[380166460,1755589785737,400.0,0.00030136,120]
[380166461,1755589787189,400.0,0.00030136,120]
[380166462,1755589787427,400.0,0.00030136,120]
[380166463,1755589788160,400.0,0.00030136,120]
[380166464,1755589789783,956.41,0.00030136,120]
[380166465,1755589790409,1585.07,0.00030136,120]
[380166466,1755589790523,2297.48,0.00030136,120]
[380166467,1755589790624,291.36450014,0.00030136,120]
[380166468,1755589790727,400.0,0.00030136,120]
[380166469,1755589790888,9379.33,0.00030136,120]
[380166470,1755589790987,3276.19,0.00030136,120]
[380166471,1755589792845,400.0,0.00030136,120]
[380166472,1755589792939,400.0,0.00030136,120]
[380166473,1755589793116,400.0,0.00030136,120]
[380166474,1755589793702,1035.37,0.00030136,120]
[380166475,1755589794281,400.0,0.00030136,120]
[380166476,1755589794869,400.0,0.00030136,120]
[380166477,1755589795734,400.0,0.00030136,120]
[380166478,1755589795965,2878.3,0.00030136,120]
[380166479,1755589796841,400.0,0.00030136,120]
[380166480,1755589797024,400.0,0.00030136,120]
[380166481,1755589797126,4049.98,0.00030136,120]
[380166482,1755589797993,1988.73,0.00030136,120]
[380166483,1755589798371,988.91,0.00030136,120]
[380166484,1755589798933,1877.16,0.00030136,120]
[380166485,1755589799183,1001.39,0.00030136,120]
[380166486,1755589800525,2309.29,0.00030136,120]
[380166487,1755589801006,570.56,0.00030136,120]
[380166488,1755589801791,2248.65,0.00030136,120]
[380166489,1755589802216,2597.97,0.00030136,120]
[380166490,1755589804289,14158.98,0.00030136,120]
[380166491,1755589804721,400.0,0.00030136,120]
[380166492,1755589804926,906.64,0.00030136,120]
[380166493,1755589805053,1078.52,0.00030136,120]
[380166495,1755589805171,1251.78,0.00030136,120]
[380166496,1755589807671,1053.85,0.00030136,120]
[380166497,1755589808252,1024.81,0.00030136,120]
[380166498,1755589809479,400.0,0.00030136,120]
[380166499,1755589809815,3640.59,0.00030136,120]
[380166500,1755589810019,400.0,0.00030136,120]
[380166501,1755589811478,2638.74,0.00030136,120]
[380166502,1755589811755,400.0,0.00030136,120]
[380166503,1755589811881,400.0,0.00030136,120]
[380166504,1755589813488,5494.04,0.00030136,120]
[380166505,1755589813791,494.36,0.00030136,120]
[380166506,1755589814649,1068.05,0.00030136,120]
[380166507,1755589815143,400.0,0.00030136,120]
[380166508,1755589815364,400.0,0.00030136,120]
[380166509,1755589815568,2910.85,0.00030136,120]
[380166510,1755589815678,400.0,0.00030136,120]
[380166511,1755589816892,2132.05,0.00030136,120]
[380166512,1755589817429,949.62,0.00030136,120]
[380166513,1755589818190,400.0,0.00030136,120]
[380166514,1755589818316,2143.81,0.00030136,120]
[380166515,1755589818775,400.0,0.00030136,120]
[380166517,1755589819665,884.0,0.00030136,120]
[380166518,1755589821156,1341.29,0.00030136,120]
[380166519,1755589821279,3098.97,0.00030136,120]
[380166520,1755589822059,663.65,0.00030136,120]
[380166521,1755589822171,444.61,0.00030136,120]
[380166522,1755589822784,3590.57,0.00030136,120]
[380166523,1755589822894,1271.42,0.00030136,120]
[380166524,1755589822993,5269.78,0.00030136,120]
[380166525,1755589823284,400.0,0.00030136,120]
[380166526,1755589823635,763.88,0.00030136,120]
[380166527,1755589823913,400.0,0.00030136,120]
[380166528,1755589824022,400.0,0.00030136,120]
[380166529,1755589825812,2194.21,0.00030136,120]
[380166530,1755589826806,1743.83,0.00030136,120]
[380166531,1755589827216,400.0,0.00030136,120]
[380166532,1755589827474,595.69,0.00030136,120]
[380166533,1755589827958,2226.86,0.00030136,120]
[380166534,1755589828061,400.0,0.00030136,120]
[380166535,1755589828181,4914.17,0.00030136,120]
[380166536,1755589828809,3329.1,0.00030136,120]
[380166537,1755589828910,4649.99,0.00030136,120]
[380166538,1755589829275,400.0,0.00030136,120]
[380166539,1755589829553,400.0,0.00030136,120]
[380166540,1755589830506,2368.11,0.00030136,120]
[380166541,1755589830972,3803.81,0.00030136,120]
[380166542,1755589831234,400.0,0.00030136,120]
[380166543,1755589831418,400.0,0.00030136,120]
[380166548,1755589833183,8514.31,0.00030136,120]
[380166549,1755589833449,400.0,0.00030136,120]
[380166550,1755589833605,788.99,0.00030136,120]
[380166551,1755589834123,400.0,0.00030136,120]
[380166552,1755589834399,656.04,0.00030136,120]
[380166553,1755589834512,656.04,0.00030136,120]
[380166554,1755589834708,5485.75,0.00030136,120]
[380166555,1755589834820,656.04,0.00030136,120]
[380166556,1755589834933,400.0,0.00030136,120]
[380166557,1755589835072,656.04,0.00030136,120]
[380166558,1755589835244,2970.68,0.00030136,120]
[380166559,1755589835529,656.04,0.00030136,120]
[380166560,1755589836372,656.04,0.00030136,120]
[380166561,1755589836548,656.04,0.00030136,120]
[380166563,1755589837547,656.04,0.00030136,120]
[380166564,1755589837828,400.0,0.00030136,120]
[380166571,1755589837957,656.04,0.00030136,120]
[380166593,1755589838151,656.04,0.00030136,120]
[380166604,1755589838341,656.04,0.00030136,120]
[380166637,1755589838632,656.04,0.00030136,120]
[380166649,1755589838738,400.0,0.00030136,120]
[380166679,1755589839014,656.04,0.00030136,120]
[380166693,1755589839144,656.04,0.00030136,120]
[380166709,1755589839340,472.81,0.00030136,120]
[380166731,1755589839581,656.04,0.00030136,120]
[380166747,1755589839772,656.04,0.00030136,120]
[380166769,1755589840022,656.04,0.00030136,120]
[380166781,1755589840157,656.04,0.00030136,120]
[380166792,1755589840281,656.04,0.00030136,120]
[380166798,1755589840393,2887.73,0.00030136,120]
[380166812,1755589840599,656.04,0.00030136,120]
[380166852,1755589840984,656.04,0.00030136,120]
[380166866,1755589841101,413.71,0.00030136,120]
[380166877,1755589841202,656.04,0.00030136,120]
[380166893,1755589841349,656.04,0.00030136,120]
[380166907,1755589841478,656.04831564,0.00030136,120]
[380166958,1755589841948,997.1,0.00030136,120]
[380167032,1755589842636,2326.9,0.00030136,120]
[380167045,1755589842753,400.0,0.00030136,120]
[380167050,1755589842865,5453.65,0.00030136,120]
[380167074,1755589843121,400.0,0.00030136,120]
[380167111,1755589843446,400.0,0.00030136,120]
[380167155,1755589843859,3411.48,0.00030136,120]
[380167168,1755589843969,2425.52,0.00030136,120]
[380167187,1755589844135,2532.88,0.00030136,120]
[380167258,1755589844818,400.0,0.00030136,120]
[380167361,1755589845901,812.07,0.00030136,120]
[380167494,1755589847199,1592.78,0.00030136,120]
[380167542,1755589847663,400.0,0.00030136,120]
[380167654,1755589848723,4558.78,0.00030136,120]
[380167710,1755589849358,2208.3,0.00030136,120]
[380167811,1755589850327,461.17,0.00030136,120]
[380167859,1755589850821,617.63,0.00030136,120]
[380167868,1755589850942,2750.7,0.00030136,120]
[380168001,1755589852232,7712.95,0.00030136,120]
[380168021,1755589852447,1965.41,0.00030136,120]
[380168024,1755589852554,2289.3,0.00030136,120]
[380168192,1755589854430,550.06,0.00030136,120]
[380168208,1755589854576,2168.23,0.00030136,120]
[380168318,1755589855814,1894.35,0.00030136,120]
[380168322,1755589855960,751.35,0.00030136,120]
[380168325,1755589856139,2731.62,0.00030136,120]
[380168331,1755589856503,3832.67,0.00030136,120]
[380168332,1755589856653,1008.67,0.00030136,120]
[380168333,1755589857070,2563.79,0.00030136,120]
[380168334,1755589858480,2950.5,0.00030136,120]
[380168335,1755589859001,2881.67,0.00030136,120]
[380168336,1755589859501,2260.14,0.00030136,120]
[380168337,1755589859802,6308.81,0.00030136,120]
[380168338,1755589860329,1153.41,0.00030136,120]
[380168339,1755589860617,400.0,0.00030136,120]
[380168340,1755589861234,1500.0,0.00030137,120]
[380168341,1755589862092,400.0,0.00030136,120]
[380168342,1755589862226,740.05,0.00030136,120]
[380168343,1755589862602,1830.49,0.00030136,120]
[380168344,1755589862932,400.0,0.00030136,120]
[380168345,1755589863454,-1427.88,9.533e-05,2]
[380168346,1755589863465,-1796.50721492,9.546e-05,2]
[380168347,1755589863605,476.91,0.00030136,120]
[380168348,1755589863631,-121.63278508,9.546e-05,2]
[380168349,1755589863642,-164.42,9.64e-05,2]
[380168350,1755589863653,-11.25721492,9.641e-05,2]
[380168351,1755589863665,-425.642011,9.641e-05,2]
[380168352,1755589863677,-251.6559542,9.641e-05,2]
[380168353,1755589863689,-566.34415937,9.641e-05,2]
[380168354,1755589863701,-501.64312512,9.641e-05,2]
[380168355,1755589863714,-743.45753539,9.641e-05,2]
[380168356,1755589863723,-627.85,9.643e-05,2]
[380168357,1755589863733,-633.53,9.649e-05,2]
[380168358,1755589863743,-151.33,9.658e-05,2]
[380168359,1755589863754,-185.47,9.669e-05,2]
[380168360,1755589863764,-1000.0,9.693e-05,2]
[380168361,1755589863773,-170.0,9.836e-05,7]
[380168362,1755589863784,-150.0,9.888e-05,2]
[380168363,1755589863793,-150.0,9.888e-05,2]
[380168364,1755589863803,-150.0,9.888e-05,2]
[380168365,1755589863813,-150.0,9.888e-05,2]
[380168366,1755589863822,-150.0,9.888e-05,2]
[380168367,1755589863831,-112.8036723,9.888e-05,2]
[380168368,1755589863843,-37.1963277,9.888e-05,2]
[380168369,1755589863852,-150.0,9.888e-05,2]
[380168370,1755589863862,-150.0,9.888e-05,2]
[380168371,1755589863872,-933.96556244,0.0001,2]
[380168372,1755589863883,-4167.12112149,0.0001,2]
[380168373,1755589863896,-626.71638853,0.0001,2]
[380168374,1755589863907,-5722.0330002,0.0001,2]
[380168375,1755589864069,-9210.215776,0.0001,2]
[380168376,1755589864081,-784.54454562,0.0001,2]
[380168377,1755589864092,-609.41426251,0.0001,2]
[380168378,1755589864579,2471.41,0.00030136,120]
[380168379,1755589865271,400.0,0.00030136,120]
[380168380,1755589865404,1164.01,0.00030136,120]
[380168381,1755589865532,6259.05,0.00030136,120]
[380168382,1755589866175,400.0,0.00030136,120]
[380168383,1755589866305,400.0,0.00030136,120]
[380168384,1755589866424,903.27,0.00030136,120]
[380168385,1755589867129,3367.01,0.00030136,120]
[380168386,1755589867250,400.0,0.00030136,120]
[380168387,1755589867383,913.38,0.00030136,120]
[380168388,1755589867536,3083.47,0.00030136,120]
[380168389,1755589867676,3729.95,0.00030136,120]
[380168390,1755589867827,2988.43,0.00030136,120]
[380168391,1755589867985,-884.93,0.0001,2]
[380168392,1755589867996,-1608.80189384,0.0001,2]
[380168393,1755589868008,-3880.42107204,0.0001,2]
[380168394,1755589868019,-17835.12312995,0.0001,2]
[380168395,1755589868030,-640.87308337,0.0001,2]
[380168396,1755589868053,-6248.52125299,0.0001,2]
[380168397,1755589869017,632.4,0.00030136,120]
[380168398,1755589869234,-2451.2125197,0.0001,2]
[380168399,1755589869243,-150.0,0.00010192,2]
[380168400,1755589869253,-150.0,0.000102,2]
[380168401,1755589869262,-200.64,0.00010401,2]
[380168402,1755589869271,-200.05,0.00010401,2]
[380168403,1755589869281,-202.87,0.00010401,2]
[380168404,1755589869290,-200.62,0.00010401,2]
[380168405,1755589869299,-202.32,0.00010401,2]
[380168406,1755589869309,-201.82,0.00010401,2]
[380168407,1755589869318,-302.31,0.00010401,2]
[380168408,1755589869328,-305.6,0.00010401,2]
[380168409,1755589869337,-201.34,0.00010402,2]
[380168410,1755589869346,-202.64,0.00010402,2]
[380168411,1755589869355,-200.25,0.00010402,2]
[380168412,1755589869365,-203.58,0.00010402,2]
[380168413,1755589869375,-304.15,0.00010402,2]
[380168414,1755589869762,-300.75,0.00010402,2]
[380168415,1755589869772,-151.26,0.00010404,2]
[380168416,1755589869781,-202.67,0.00010404,2]
[380168417,1755589869792,-152.59506046,0.00010404,2]
[380168418,1755589869803,-48.05493954,0.00010404,2]
[380168419,1755589869813,-201.44,0.00010407,2]
[380168420,1755589869822,-59.44867467,0.00010407,2]
[380168421,1755589869849,-243.71132533,0.00010407,2]
[380168422,1755589869860,-203.86,0.00010407,2]
[380168423,1755589869872,-203.43,0.00010407,2]
[380168424,1755589869883,-34.03165208,0.00010407,2]
[380168425,1755589869990,400.0,0.00030136,120]
[380168426,1755589870017,-270.02834792,0.00010407,2]
[380168427,1755589870027,-151.02,0.00010408,2]
[380168428,1755589870036,-200.44,0.00010408,2]
[380168429,1755589870045,-200.28,0.00010408,2]
[380168430,1755589870055,-201.26,0.00010408,2]
[380168431,1755589870064,-303.1,0.00010409,2]
[380168432,1755589870074,-203.13,0.00010415,2]
[380168433,1755589870084,-200.95,0.00010415,2]
[380168434,1755589870093,-202.6,0.00010415,2]
[380168435,1755589870103,-300.45,0.00010421,2]
[380168436,1755589870112,-152.33,0.00010432,2]
[380168437,1755589870121,-160.0,0.00010449,2]
[380168438,1755589870131,-277.35679052,0.00010449,2]
[380168439,1755589870140,-203.39,0.00010464,2]
[380168440,1755589870150,-203.35,0.00010464,2]
[380168441,1755589870164,-203.45,0.00010464,2]
[380168442,1755589870173,-305.6992,0.00010466,2]
[380168443,1755589870182,-305.85,0.00010466,2]
[380168444,1755589870192,-300.0,0.00010487,2]
[380168445,1755589870202,-212.02104404,0.00010498,2]
[380168446,1755589870212,-5000.0,0.000105,2]
[380168447,1755589870221,-200.29,0.000105,2]
[380168448,1755589870233,-203.19,0.000105,2]
[380168449,1755589870243,-304.16,0.000105,2]
[380168450,1755589870252,-202.36,0.000105,2]
[380168451,1755589870262,-202.15,0.000105,2]
[380168452,1755589870271,-150.72,0.000105,2]
[380168453,1755589870281,-301.89,0.000105,2]
[380168454,1755589870290,-200.59,0.000105,2]
[380168455,1755589870300,-202.35,0.000105,2]
[380168456,1755589870310,-201.85,0.000105,2]
[380168457,1755589870320,-300.22,0.000105,2]
[380168458,1755589870329,-200.31,0.000105,2]
[380168459,1755589870339,-200.46,0.000105,2]
[380168460,1755589870348,-151.85,0.000105,2]
[380168461,1755589870358,-300.14,0.000105,2]
[380168462,1755589870367,-201.49,0.000105,2]
[380168463,1755589870377,-202.9,0.000105,2]
[380168464,1755589870387,-201.77,0.000105,2]
[380168465,1755589870396,-202.6,0.000105,2]
[380168466,1755589870408,-302.82,0.000105,2]
[380168467,1755589870417,-676.59,0.0001052,2]
[380168468,1755589870427,-333.0750675,0.00010594,2]
[380168469,1755589870901,1041.48,0.00030136,120]
[380168470,1755589871005,944.57,0.00030136,120]
[380168471,1755589871133,400.0,0.00030136,120]
[380168472,1755589871331,10506.85,0.00030136,120]
[380168473,1755589871449,477.54,0.00030136,120]
[380168474,1755589871809,3263.09,0.00030136,120]
[380168475,1755589871980,407.08,0.00030136,120]
[380168476,1755589872377,-458.43483364,0.00010498,2]
[380168477,1755589872386,-138.16200248,0.00010594,2]
[380168478,1755589872398,-372.63433667,0.00010594,2]
[380168479,1755589872409,-859.52880744,0.00010604,2]
[380168480,1755589872425,-1640.47119256,0.00010604,2]
[380168481,1755589872434,-2500.0,0.00010604,2]
[380168482,1755589872444,-300.0,0.00010604,2]
[380168483,1755589872453,-250.0,0.00010604,2]
[380168484,1755589872464,-500.0,0.00010604,2]
[380168485,1755589872474,-202.73,0.00010676,2]
[380168486,1755589872483,-300.18,0.00010676,2]
[380168487,1755589872493,-202.18,0.00010676,2]
[380168488,1755589872503,-200.58,0.00010676,2]
[380168489,1755589872512,-203.1,0.00010676,2]
[380168490,1755589872522,-152.3,0.00010676,2]
[380168491,1755589872532,-305.42,0.00010676,2]
[380168492,1755589872542,-202.23,0.00010676,2]
[380168493,1755589872552,-203.0,0.00010676,2]
[380168494,1755589872561,-302.83,0.00010676,2]
[380168495,1755589872572,-200.56,0.00010676,2]
[380168496,1755589872582,-904.0,0.00010677,2]
[380168497,1755589872592,-1255.0,0.00010677,2]
[380168498,1755589872602,-2029.0,0.00010677,2]
[380168499,1755589872611,-1703.43438695,0.00010677,2]
[380168500,1755589872726,400.0,0.00030136,120]
[380168501,1755589873069,400.0,0.00030136,120]
[380168502,1755589873358,1121.15,0.00030136,120]
[380168503,1755589873555,400.0,0.00030136,120]
[380168504,1755589873695,2032.67,0.00030136,120]
[380168505,1755589875026,-1667.56561305,0.00010677,2]
[380168506,1755589875035,-503.23488695,0.00010677,2]
[380168507,1755589875055,-62.76511305,0.00010677,2]
[380168508,1755589875065,-1297.0,0.00010677,2]
[380168509,1755589875074,-1656.0,0.00010677,2]
[380168510,1755589875084,-599.0,0.00010677,2]
[380168511,1755589875093,-500.0,0.0001077,2]
[380168512,1755589875102,-150.0,0.0001077,2]
[380168513,1755589875112,-500.0,0.0001077,2]
[380168514,1755589875121,-150.0,0.0001077,2]
[380168515,1755589875131,-500.0,0.0001077,2]
[380168516,1755589875140,-500.0,0.0001077,2]
[380168517,1755589875151,-150.0,0.0001077,2]
[380168518,1755589875163,-762.0,0.0001077,2]
[380168519,1755589875172,-657.6825,0.000108,2]
[380168520,1755589875182,-169.08813621,0.000109,2]
[380168521,1755589875191,-5000.0,0.000109,2]
[380168522,1755589875202,-571.15902934,0.000109,2]
[380168523,1755589875212,-1000.0,0.00010904,2]
[380168524,1755589875221,-508.20583414,0.00010973,2]
[380168525,1755589875231,-500.0,0.00010973,2]
[380168526,1755589875242,-500.0,0.00010973,2]
[380168527,1755589875252,-500.0,0.00010973,2]
[380168528,1755589875261,-500.48507741,0.00010973,2]
[380168529,1755589875271,-500.0,0.00010973,2]
[380168530,1755589875281,-4993.68430985,0.00010977,2]
[380168531,1755589875552,400.0,0.00030136,120]
[380168532,1755589875799,8896.64,0.00030136,120]
[380168533,1755589877470,3909.23,0.00030136,120]
[380168534,1755589877785,400.0,0.00030136,120]
[380168535,1755589878236,3062.85,0.00030136,120]
[380168536,1755589879652,5176.31,0.00030136,120]
[380168537,1755589880269,400.0,0.00030136,120]
[380168538,1755589880366,764.22,0.00030136,120]
[380168539,1755589880797,400.0,0.00030136,120]
[380168540,1755589881092,6267.51,0.00030136,120]
[380168541,1755589881582,400.0,0.00030136,120]
[380168542,1755589881754,5981.6,0.00030136,120]
[380168543,1755589882807,21343.73,0.00030136,120]
[380168544,1755589883259,400.0,0.00030136,120]
[380168545,1755589883380,2609.44,0.00030136,120]
[380168546,1755589883507,400.0,0.00030136,120]
[380168547,1755589883631,400.0,0.00030136,120]
[380168548,1755589883734,400.0,0.00030136,120]
[380168549,1755589884084,1053.98,0.00030136,120]
[380168550,1755589884330,1053.98,0.00030136,120]
[380168551,1755589884470,1053.98,0.00030136,120]
[380168552,1755589884617,1053.98,0.00030136,120]
[380168553,1755589884856,1053.98,0.00030136,120]
[380168554,1755589885036,1053.98,0.00030136,120]
[380168555,1755589885173,1053.98,0.00030136,120]
[380168556,1755589885475,1053.98,0.00030136,120]
[380168557,1755589885684,1053.98,0.00030136,120]
[380168558,1755589885874,400.0,0.00030136,120]
[380168559,1755589885964,400.0,0.00030136,120]
[380168560,1755589886055,1053.98,0.00030136,120]
[380168561,1755589886329,400.0,0.00030136,120]
[380168562,1755589886439,1053.98,0.00030136,120]
[380168563,1755589886663,2138.79,0.00030136,120]
[380168564,1755589886766,1053.98,0.00030136,120]
[380168565,1755589886928,1053.98,0.00030136,120]
[380168566,1755589887068,1053.98,0.00030136,120]
[380168567,1755589887214,1053.98,0.00030136,120]
[380168568,1755589887366,1053.98,0.00030136,120]
[380168569,1755589887478,1541.68,0.00030136,120]
[380168570,1755589887617,1053.98,0.00030136,120]
[380168571,1755589887779,1053.98,0.00030136,120]
[380168572,1755589888349,1053.98,0.00030136,120]
[380168573,1755589888487,400.0,0.00030136,120]
[380168574,1755589888613,1053.98,0.00030136,120]
[380168575,1755589888984,2032.33,0.00030136,120]
[380168576,1755589889099,400.0,0.00030136,120]
[380168577,1755589889219,1053.98,0.00030136,120]
[380168578,1755589889383,646.6,0.00030136,120]
[380168579,1755589889492,1053.98,0.00030136,120]
[380168580,1755589890253,1053.98,0.00030136,120]
[380168581,1755589890466,1054.18415293,0.00030136,120]
[380168582,1755589890616,400.0,0.00030136,120]
[380168583,1755589890872,400.0,0.00030136,120]
[380168584,1755589891315,3271.98,0.00030136,120]
[380168585,1755589892622,1395.9,0.00030136,120]
[380168586,1755589892739,10436.82,0.00030136,120]
[380168587,1755589893873,400.0,0.00030136,120]
[380168588,1755589894034,400.0,0.00030136,120]
[380168589,1755589894514,500.0,0.00021917,120]
[380168590,1755589894720,400.0,0.00030136,120]
[380168591,1755589895265,3143.3,0.00030136,120]
[380168592,1755589895382,400.0,0.00030136,120]
[380168593,1755589895607,3051.08,0.00030136,120]
[380168594,1755589895974,400.0,0.00030136,120]
[380168595,1755589896069,956.65,0.00030136,120]
[380168596,1755589896168,400.0,0.00030136,120]
[380168597,1755589896505,400.0,0.00030136,120]
[380168598,1755589896610,400.0,0.00030136,120]
[380168599,1755589897060,4601.75,0.00030136,120]
[380168600,1755589897908,400.0,0.00030136,120]
[380168601,1755589898040,1654.18,0.00030136,120]
[380168602,1755589898147,400.0,0.00030136,120]
[380168603,1755589898454,840.34,0.00030136,120]
[380168604,1755589898695,400.0,0.00030136,120]
[380168605,1755589898853,500.0,0.00021917,120]
[380168606,1755589899184,500.0,0.00021917,120]
[380168607,1755589899334,500.0,0.00021917,120]
[380168608,1755589899460,2291.49,0.00030136,120]
[380168609,1755589899572,365.74,0.00021917,120]
[380168610,1755589899850,7602.47353275,0.0003,120]
[380168611,1755589900186,524.63,0.00030136,120]
[380168612,1755589901597,400.0,0.00030136,120]
[380168613,1755589901822,500.0,0.00030136,120]
[380168614,1755589901953,2017.56,0.00030136,120]
[380168615,1755589902052,500.0,0.00030136,120]
[380168616,1755589902183,500.0,0.00030136,120]
[380168617,1755589902521,569.57,0.00030136,120]
[380168618,1755589902624,500.0,0.00030136,120]
[380168619,1755589902871,500.0,0.00030136,120]
[380168620,1755589902976,2246.99,0.00030136,120]
[380168621,1755589903143,1450.55,0.00030136,120]
[380168622,1755589903261,500.0,0.00030136,120]
[380168623,1755589903465,500.0,0.00030136,120]
[380168624,1755589903616,500.0,0.00030136,120]
[380168625,1755589903806,500.0,0.00030136,120]
[380168626,1755589904018,500.0,0.00030136,120]
[380168627,1755589904290,5345.5182195,0.0003,120]
[380168628,1755589904429,500.0,0.00030136,120]
[380168629,1755589904553,2323.29,0.00030136,120]
[380168630,1755589904700,500.0,0.00030136,120]
[380168631,1755589905125,500.0,0.00030136,120]
[380168632,1755589905285,500.0,0.00030136,120]
[380168633,1755589905498,400.0,0.00030136,120]
[380168634,1755589905609,500.0,0.00030136,120]
[380168635,1755589905815,3651.1,0.00030136,120]
[380168636,1755589905963,500.0,0.00030136,120]
[380168637,1755589906103,7177.77,0.00030136,120]
[380168638,1755589906228,500.0,0.00030136,120]
[380168639,1755589906477,8104.32,0.00030136,120]
[380168640,1755589906580,500.0,0.00030136,120]
[380168641,1755589906794,500.0,0.00030136,120]
[380168642,1755589906957,500.0,0.00030136,120]
[380168643,1755589907273,500.0,0.00030136,120]
[380168644,1755589907723,281.77922516,0.00030136,120]
[380168645,1755589908156,522.69,0.00030136,120]
[380168646,1755589908884,400.0,0.00030136,120]
[380168647,1755589909219,400.0,0.00030136,120]
[380168648,1755589909358,400.0,0.00030136,120]
[380168649,1755589909504,1123.66,0.00030136,120]
[380168650,1755589909667,400.0,0.00030136,120]
[380168651,1755589910630,400.0,0.00030136,120]
[380168652,1755589910783,400.0,0.00030136,120]
[380168653,1755589913090,400.0,0.00030136,120]
[380168654,1755589913221,400.0,0.00030136,120]
[380168655,1755589913398,401.15486188,0.00030136,120]
[380168656,1755589913962,1783.83,0.00030136,120]
[380168657,1755589914239,400.0,0.00030136,120]
[380168658,1755589914546,1720.74,0.00030136,120]
[380168659,1755589914861,7016.74,0.00030136,120]
[380168660,1755589914983,400.0,0.00030136,120]
[380168661,1755589915309,1399.59,0.00030136,120]
[380168662,1755589915518,400.0,0.00030136,120]
[380168663,1755589915815,460.56,0.00030136,120]